fUST/lending_fUST_20250628
["ID","MTS","AMOUNT","RATE_DAILY","PERIOD"]
[368254375,1751075440384,-460.0,0.00019178,2]
[368254377,1751075440394,-1749.87,0.00019178,2]
[368254379,1751075440404,-164.25271504,0.00019178,2]
[368254381,1751075440414,-460.0,0.00019178,2]
[368254383,1751075440424,-471.46189268,0.00019178,2]
[368254386,1751075440433,-470.82195546,0.00019178,2]
[368254388,1751075440442,-467.86997066,0.00019178,2]
[368254390,1751075440452,-465.68575073,0.00019178,2]
[368254391,1751075440461,-346.49205439,0.00019178,2]
[368254393,1751075440470,-465.1708795,0.00019178,2]
[368254396,1751075440479,-460.0,0.00019178,2]
[368254397,1751075440488,-466.4819148,0.00019178,2]
[368254400,1751075440497,-466.91,0.00019178,2]
[368254401,1751075440506,-463.8485974,0.00019178,2]
[368254404,1751075440516,-466.28521333,0.00019178,2]
[368254406,1751075440525,-462.50198912,0.00019178,2]
[368254408,1751075440536,-460.0,0.00019178,2]
[368254410,1751075440549,-460.0,0.00019178,2]
[368254411,1751075440558,-466.22955663,0.00019178,2]
[368254412,1751075440568,-465.71523275,0.00019178,2]
[368254413,1751075440577,-586.10379326,0.00019178,2]
[368254414,1751075440587,-460.0,0.00019178,2]
[368254415,1751075440596,-465.42046616,0.00019178,2]
[368254416,1751075440605,-641.71,0.00019178,2]
[368254417,1751075440614,-460.0,0.00019178,2]
[368254418,1751075440623,-466.09449462,0.00019178,2]
[368254419,1751075440633,-460.0,0.00019178,2]
[368254420,1751075440643,-466.84309156,0.00019178,2]
[368254421,1751075440652,-465.7836555,0.00019178,2]
[368254422,1751075440661,-462.61244568,0.00019178,2]
[368254423,1751075440670,-467.47915485,0.00019178,2]
[368254424,1751075440679,-467.24063406,0.00019178,2]
[368254425,1751075440688,-467.28406414,0.00019178,2]
[368254426,1751075440697,-461.99851534,0.00019178,2]
[368254427,1751075440706,-464.50247786,0.00019178,2]
[368254428,1751075440715,-1748.96,0.00019178,2]
[368254429,1751075440725,-461.03610295,0.00019178,2]
[368254430,1751075440734,-460.0,0.00019178,2]
[368254432,1751075440744,-504.27,0.00019178,2]
[368254434,1751075440753,-228.63945414,0.00019178,2]
[368254436,1751075440766,-1630.37,0.00019178,2]
[368254438,1751075440776,-465.42769712,0.00019178,2]
[368254440,1751075440786,-470.15313391,0.00019178,2]
[368254442,1751075440796,-464.96924398,0.00019178,2]
[368254445,1751075440806,-471.02778597,0.00019178,2]
[368254447,1751075440815,-460.0,0.00019178,2]
[368254448,1751075440824,-1387.59,0.00019178,2]
[368254450,1751075440834,-468.21037766,0.00019178,2]
[368254452,1751075440843,-1580.91,0.00019178,2]
[368254454,1751075440852,-460.0,0.00019178,2]
[368254456,1751075440861,-474.54303389,0.00019178,2]
[368254458,1751075440870,-584.57924811,0.00019178,2]
[368254460,1751075440879,-463.42415468,0.00019178,2]
[368254462,1751075440889,-465.6388578,0.00019178,2]
[368254464,1751075440898,-2604.78,0.00019178,2]
[368254466,1751075440908,-460.0,0.00019178,2]
[368254468,1751075440917,-461.1727131,0.00019178,2]
[368254470,1751075440926,-472.97682848,0.00019178,2]
[368254472,1751075440935,-460.0,0.00019178,2]
[368254474,1751075440944,-477.14323344,0.00019178,2]
[368254476,1751075440954,-460.0,0.00019178,2]
[368254478,1751075440963,-1742.3,0.00019178,2]
[368254480,1751075440972,-469.58588772,0.00019178,2]
[368254482,1751075440982,-450.33984309,0.00019178,2]
[368254484,1751075440991,-517.9159934,0.00019178,2]
[368254486,1751075441000,-462.64,0.00019178,2]
[368254488,1751075441010,-465.66701347,0.00019178,2]
[368254490,1751075441019,-463.34075684,0.00019178,2]
[368254492,1751075441028,-460.0,0.00019178,2]
[368254494,1751075441037,-460.0,0.00019178,2]
[368254496,1751075441046,-463.52071661,0.00019178,2]
[368254498,1751075441055,-464.12768073,0.00019178,2]
[368254500,1751075441065,-699.66,0.00019178,2]
[368254502,1751075441074,-4152.59,0.00019178,2]
[368254504,1751075441087,-464.83612535,0.00019178,2]
[368254505,1751075441096,-462.73394668,0.00019178,2]
[368254508,1751075441106,-466.02204953,0.00019178,2]
[368254510,1751075441115,-521.66,0.00019178,2]
[368254511,1751075441126,-469.1795111,0.00019178,2]
[368254512,1751075441136,-467.7951719,0.00019178,2]
[368254514,1751075441145,-462.88070098,0.00019178,2]
[368254516,1751075441155,-970.74,0.00019178,2]
[368254518,1751075441165,-465.84034778,0.00019178,2]
[368254520,1751075441174,-462.95255393,0.00019178,2]
[368254522,1751075441183,-537.62037932,0.00019178,2]
[368254524,1751075441192,-463.97483805,0.00019178,2]
[368254526,1751075441201,-462.36364182,0.00019178,2]
[368254528,1751075441211,-461.48316182,0.00019178,2]
[368254530,1751075441220,-460.0,0.00019178,2]
[368254532,1751075441229,-467.20457484,0.00019178,2]
[368254534,1751075441238,-471.12385111,0.00019178,2]
[368254536,1751075441248,-499.16324547,0.00019178,2]
[368254538,1751075441257,-464.45002288,0.00019178,2]
[368254540,1751075441266,-460.0,0.00019178,2]
[368254542,1751075441275,-466.14541284,0.00019178,2]
[368254544,1751075441284,-481.23918393,0.00019178,2]
[368254546,1751075441294,-469.70551564,0.00019178,2]
[368254548,1751075441303,-464.16820727,0.00019178,2]
[368254550,1751075441315,-460.0,0.00019178,2]
[368254552,1751075441324,-460.0,0.00019178,2]
[368254554,1751075441333,-494.19874573,0.00019178,2]
[368254556,1751075441342,-460.0,0.00019178,2]
[368254558,1751075441351,-910.11,0.00019178,2]
[368254560,1751075441361,-1509.27,0.00019178,2]
[368254562,1751075441370,-463.10724995,0.00019178,2]
[368254565,1751075441380,-460.0,0.00019178,2]
[368254566,1751075441389,-470.94622022,0.00019178,2]
[368254568,1751075441399,-469.08221781,0.00019178,2]
[368254570,1751075441409,-476.55118851,0.00019178,2]
[368254572,1751075441418,-621.59,0.00019178,2]
[368254574,1751075441428,-460.0,0.00019178,2]
[368254576,1751075441437,-465.40950147,0.00019178,2]
[368254578,1751075441446,-1187.22,0.00019178,2]
[368254580,1751075441455,-467.71399948,0.00019178,2]
[368254582,1751075441464,-461.88059277,0.00019178,2]
[368254584,1751075441474,-460.0,0.00019178,2]
[368254586,1751075441483,-217.16945036,0.00019178,2]
[368254588,1751075441492,-637.56,0.00019178,2]
[368254590,1751075441502,-464.60157807,0.00019178,2]
[368254592,1751075441511,-434.91760545,0.00019178,2]
[368254594,1751075441520,-1056.6,0.00019178,2]
[368254596,1751075441530,-462.4000647,0.00019178,2]
[368254598,1751075441539,-463.12238808,0.00019178,2]
[368254601,1751075441549,-460.94574164,0.00019178,2]
[368254602,1751075441558,-476.26013508,0.00019178,2]
[368254604,1751075441567,-229.59890279,0.00019178,2]
[368254607,1751075441577,-466.38612323,0.00019178,2]
[368254608,1751075441587,-471.72300298,0.00019178,2]
[368254610,1751075441597,-478.1631837,0.00019178,2]
[368254613,1751075441607,-465.10149969,0.00019178,2]
[368254614,1751075441617,-464.96794007,0.00019178,2]
[368254616,1751075441627,-462.42662083,0.00019178,2]
[368254618,1751075441637,-460.86978646,0.00019178,2]
[368254620,1751075441646,-464.62467135,0.00019178,2]
[368254622,1751075441655,-464.04443265,0.00019178,2]
[368254624,1751075441664,-470.3956509,0.00019178,2]
[368254626,1751075441676,-467.74666732,0.00019178,2]
[368254629,1751075441686,-468.02979511,0.00019178,2]
[368254631,1751075441695,-467.47315705,0.00019178,2]
[368254633,1751075441705,-464.7332662,0.00019178,2]
[368254634,1751075441715,-466.31974367,0.00019178,2]
[368254636,1751075441724,-466.24956052,0.00019178,2]
[368254639,1751075441734,-470.51643703,0.00019178,2]
[368254640,1751075441743,-460.0,0.00019178,2]
[368254642,1751075441752,-466.32040245,0.00019178,2]
[368254645,1751075441761,-1623.49,0.00019178,2]
[368254646,1751075441771,-463.85105946,0.00019178,2]
[368254649,1751075441781,-460.0,0.00019178,2]
[368254651,1751075441791,-460.0,0.00019178,2]
[368254653,1751075441801,-460.0,0.00019178,2]
[368254655,1751075441811,-506.47943948,0.00019178,2]
[368254657,1751075441820,-472.06933343,0.00019178,2]
[368254659,1751075441829,-460.0,0.00019178,2]
[368254661,1751075441838,-466.01139694,0.00019178,2]
[368254663,1751075441848,-468.88166049,0.00019178,2]
[368254665,1751075441858,-460.0,0.00019178,2]
[368254666,1751075441867,-534.09777352,0.00019178,2]
[368254669,1751075441877,-462.90199869,0.00019178,2]
[368254671,1751075441886,-272.554265,0.00019178,2]
[368254672,1751075441896,-504.86928899,0.00019178,2]
[368254675,1751075441907,-156.07463367,0.00019329,2]
[368254677,1751075441916,-200.5,0.00019432,2]
[368254679,1751075441925,-460.0,0.00019452,2]
[368254681,1751075441934,-460.0,0.00019452,2]
[368254683,1751075441944,-447.15709246,0.00019452,2]
[368254685,1751075441953,-460.0,0.00019452,2]
[368254687,1751075441962,-460.0,0.00019452,2]
[368254689,1751075441972,-460.0,0.00019452,2]
[368254690,1751075441981,-460.0,0.00019452,2]
[368254692,1751075441990,-472.75459452,0.00019452,2]
[368254694,1751075442000,-460.0,0.00019452,2]
[368254696,1751075442010,-460.0,0.00019452,2]
[368254698,1751075442019,-460.0,0.00019452,2]
[368254700,1751075442028,-460.0,0.00019452,2]
[368254702,1751075442037,-475.21610744,0.00019452,2]
[368254704,1751075442047,-460.0,0.00019452,2]
[368254706,1751075442056,-460.0,0.00019452,2]
[368254708,1751075442065,-460.0,0.00019452,2]
[368254710,1751075442075,-460.0,0.00019452,2]
[368254711,1751075442088,-483.9,0.00019452,2]
[368254713,1751075442098,-460.0,0.00019452,2]
[368254715,1751075442108,-460.0,0.00019452,2]
[368254717,1751075442118,-460.0,0.00019452,2]
[368254720,1751075442128,-460.0,0.00019452,2]
[368254722,1751075442137,-460.0,0.00019452,2]
[368254724,1751075442151,-460.0,0.00019452,2]
[368254726,1751075442160,-460.0,0.00019452,2]
[368254728,1751075442169,-460.0,0.00019452,2]
[368254730,1751075442178,-562.31248443,0.00019452,2]
[368254731,1751075442188,-460.0,0.00019452,2]
[368254732,1751075442198,-460.0,0.00019452,2]
[368254733,1751075442208,-460.0,0.00019452,2]
[368254734,1751075442218,-460.0,0.00019452,2]
[368254735,1751075442227,-1165.43,0.00019452,2]
[368254736,1751075442236,-936.86,0.00019452,2]
[368254737,1751075442246,-179.04861445,0.00019452,2]
[368254738,1751075442255,-460.0,0.00019452,2]
[368254739,1751075442267,-522.71548166,0.00019452,2]
[368254740,1751075442277,-1749.87,0.00019452,2]
[368254741,1751075442286,-460.0,0.00019452,2]
[368254742,1751075442295,-460.0,0.00019452,2]
[368254743,1751075442305,-466.91,0.00019452,2]
[368254744,1751075442314,-460.0,0.00019452,2]
[368254745,1751075442323,-460.0,0.00019452,2]
[368254746,1751075442333,-460.0,0.00019452,2]
[368254747,1751075442342,-641.71,0.00019452,2]
[368254748,1751075442351,-460.0,0.00019452,2]
[368254749,1751075442361,-460.0,0.00019452,2]
[368254750,1751075442370,-1748.96,0.00019452,2]
[368254751,1751075442380,-460.0,0.00019452,2]
[368254752,1751075442389,-504.27,0.00019452,2]
[368254753,1751075442399,-1630.37,0.00019452,2]
[368254754,1751075442408,-460.0,0.00019452,2]
[368254755,1751075442417,-1387.59,0.00019452,2]
[368254756,1751075442427,-1580.91,0.00019452,2]
[368254757,1751075442437,-327.00166879,0.00019452,2]
[368254758,1751075442446,-2604.78,0.00019452,2]
[368254759,1751075442456,-460.0,0.00019452,2]
[368254760,1751075442467,-481.85731225,0.00019452,2]
[368254761,1751075442477,-460.0,0.00019452,2]
[368254762,1751075442486,-1742.3,0.00019452,2]
[368254763,1751075442496,-462.64,0.00019452,2]
[368254764,1751075442505,-467.98762696,0.00019452,2]
[368254766,1751075442514,-460.0,0.00019452,2]
[368254768,1751075442523,-699.66,0.00019452,2]
[368254769,1751075442533,-4152.59,0.00019452,2]
[368254771,1751075442542,-521.66,0.00019452,2]
[368254772,1751075442551,-970.74,0.00019452,2]
[368254773,1751075442560,-460.0,0.00019452,2]
[368254774,1751075442570,-460.0,0.00019452,2]
[368254775,1751075442579,-460.0,0.00019452,2]
[368254776,1751075442588,-460.0,0.00019452,2]
[368254778,1751075442598,-460.0,0.00019452,2]
[368254779,1751075442607,-910.11,0.00019452,2]
[368254781,1751075442616,-1509.27,0.00019452,2]
[368254782,1751075442626,-460.0,0.00019452,2]
[368254783,1751075442635,-621.59,0.00019452,2]
[368254784,1751075442644,-460.0,0.00019452,2]
[368254785,1751075442653,-1187.22,0.00019452,2]
[368254786,1751075442663,-460.0,0.00019452,2]
[368254787,1751075442672,-637.56,0.00019452,2]
[368254788,1751075442681,-1056.6,0.00019452,2]
[368254789,1751075442690,-460.0,0.00019452,2]
[368254790,1751075442699,-1623.49,0.00019452,2]
[368254791,1751075442708,-460.0,0.00019452,2]
[368254803,1751075442843,-460.0,0.00019452,2]
[368254805,1751075442853,-460.0,0.00019452,2]
[368254807,1751075442863,-460.0,0.00019452,2]
[368254808,1751075442872,-2226.34336607,0.00019626,2]
[368254810,1751075442881,-500.0,0.00019725,2]
[368254812,1751075442890,-590.07879544,0.00019725,2]
[368254814,1751075442902,-460.0,0.00019726,2]
[368254816,1751075442911,-460.0,0.00019726,2]
[368254817,1751075442921,-460.0,0.00019726,2]
[368254819,1751075442930,-460.0,0.00019726,2]
[368254821,1751075442939,-460.0,0.00019726,2]
[368254823,1751075442949,-460.0,0.00019726,2]
[368254825,1751075442958,-460.0,0.00019726,2]
[368254827,1751075442967,-474.82475095,0.00019726,2]
[368254829,1751075442977,-460.0,0.00019726,2]
[368254830,1751075442986,-460.0,0.00019726,2]
[368254832,1751075442995,-475.86945316,0.00019726,2]
[368254834,1751075443008,-460.0,0.00019726,2]
[368254836,1751075443017,-460.0,0.00019726,2]
[368254838,1751075443027,-484.72416739,0.00019726,2]
[368254840,1751075443036,-483.9,0.00019726,2]
[368254841,1751075443045,-469.57730492,0.00019726,2]
[368254843,1751075443054,-486.17548705,0.00019726,2]
[368254845,1751075443064,-460.0,0.00019726,2]
[368254847,1751075443074,-460.0,0.00019726,2]
[368254849,1751075443087,-460.0,0.00019726,2]
[368254851,1751075443098,-460.0,0.00019726,2]
[368254852,1751075443106,-460.0,0.00019726,2]
[368254854,1751075443116,-460.0,0.00019726,2]
[368254856,1751075443126,-460.0,0.00019726,2]
[368254858,1751075443135,-460.0,0.00019726,2]
[368254860,1751075443144,-272.61280322,0.00019726,2]
[368254861,1751075443154,-460.0,0.00019726,2]
[368254863,1751075443163,-1165.43,0.00019726,2]
[368254865,1751075443172,-936.86,0.00019726,2]
[368254867,1751075443181,-460.0,0.00019726,2]
[368254869,1751075443191,-1749.87,0.00019726,2]
[368254870,1751075443200,-460.0,0.00019726,2]
[368254872,1751075443210,-460.0,0.00019726,2]
[368254874,1751075443220,-466.91,0.00019726,2]
[368254876,1751075443229,-460.0,0.00019726,2]
[368254878,1751075443239,-460.0,0.00019726,2]
[368254880,1751075443250,-460.0,0.00019726,2]
[368254882,1751075443259,-641.71,0.00019726,2]
[368254883,1751075443268,-460.0,0.00019726,2]
[368254885,1751075443278,-460.0,0.00019726,2]
[368254887,1751075443287,-1748.96,0.00019726,2]
[368254889,1751075443296,-504.27,0.00019726,2]
[368254891,1751075443305,-1630.37,0.00019726,2]
[368254893,1751075443315,-460.0,0.00019726,2]
[368254894,1751075443324,-460.0,0.00019726,2]
[368254896,1751075443333,-1387.59,0.00019726,2]
[368254898,1751075443343,-1580.91,0.00019726,2]
[368254900,1751075443352,-2604.78,0.00019726,2]
[368254902,1751075443361,-460.0,0.00019726,2]
[368254903,1751075443371,-460.0,0.00019726,2]
[368254905,1751075443380,-1742.3,0.00019726,2]
[368254907,1751075443390,-462.64,0.00019726,2]
[368254909,1751075443399,-460.0,0.00019726,2]
[368254911,1751075443409,-699.66,0.00019726,2]
[368254913,1751075443418,-4152.59,0.00019726,2]
[368254914,1751075443427,-521.66,0.00019726,2]
[368254916,1751075443437,-970.74,0.00019726,2]
[368254918,1751075443447,-460.0,0.00019726,2]
[368254920,1751075443456,-460.0,0.00019726,2]
[368254922,1751075443465,-460.0,0.00019726,2]
[368254923,1751075443474,-460.0,0.00019726,2]
[368254925,1751075443484,-460.0,0.00019726,2]
[368254927,1751075443494,-910.11,0.00019726,2]
[368254929,1751075443502,-1509.27,0.00019726,2]
[368254931,1751075443512,-460.0,0.00019726,2]
[368254933,1751075443521,-621.59,0.00019726,2]
[368254934,1751075443530,-460.0,0.00019726,2]
[368254936,1751075443540,-1187.22,0.00019726,2]
[368254938,1751075443549,-460.0,0.00019726,2]
[368254940,1751075443558,-637.56,0.00019726,2]
[368254942,1751075443567,-1056.6,0.00019726,2]
[368254943,1751075443576,-1623.49,0.00019726,2]
[368254945,1751075443586,-460.0,0.00019726,2]
[368254947,1751075443595,-460.0,0.00019726,2]
[368254949,1751075443605,-460.0,0.00019726,2]
[368254951,1751075443614,-460.0,0.00019726,2]
[368254953,1751075443624,-7138.87120124,0.000199,2]
[368254954,1751075443634,-500.0,0.00019926,2]
[368254956,1751075443644,-420.0,0.00019971,2]
[368254958,1751075443653,-460.0,0.0002,2]
[368254960,1751075443663,-460.0,0.0002,2]
[368254962,1751075443672,-464.9237173,0.0002,2]
[368254964,1751075443682,-460.0,0.0002,2]
[368254965,1751075443691,-460.0,0.0002,2]
[368254967,1751075443700,-460.0,0.0002,2]
[368254969,1751075443714,-460.0,0.0002,2]
[368254971,1751075443723,-556.38144673,0.0002,2]
[368254973,1751075443732,-460.0,0.0002,2]
[368254975,1751075443742,-460.0,0.0002,2]
[368254977,1751075443751,-460.0,0.0002,2]
[368254978,1751075443760,-483.9,0.0002,2]
[368254980,1751075443772,-460.0,0.0002,2]
[368254982,1751075443782,-460.0,0.0002,2]
[368254984,1751075443792,-406.51660203,0.0002,2]
[368254986,1751075443802,-256.39734605,0.0002,2]
[368254988,1751075443811,-460.0,0.0002,2]
[368254989,1751075443821,-460.0,0.0002,2]
[368254991,1751075443830,-460.0,0.0002,2]
[368254993,1751075443840,-460.0,0.0002,2]
[368254995,1751075443849,-460.0,0.0002,2]
[368254997,1751075443859,-1165.43,0.0002,2]
[368254998,1751075443868,-936.86,0.0002,2]
[368255000,1751075443877,-460.0,0.0002,2]
[368255002,1751075443887,-1749.87,0.0002,2]
[368255004,1751075443896,-460.0,0.0002,2]
[368255006,1751075443905,-460.0,0.0002,2]
[368255007,1751075443914,-466.91,0.0002,2]
[368255009,1751075443923,-460.0,0.0002,2]
[368255011,1751075443932,-460.0,0.0002,2]
[368255013,1751075443942,-460.0,0.0002,2]
[368255015,1751075443951,-641.71,0.0002,2]
[368255017,1751075443961,-460.0,0.0002,2]
[368255019,1751075443970,-460.0,0.0002,2]
[368255021,1751075443979,-1748.96,0.0002,2]
[368255023,1751075443989,-504.27,0.0002,2]
[368255025,1751075443999,-1630.37,0.0002,2]
[368255027,1751075444008,-460.0,0.0002,2]
[368255029,1751075444017,-460.0,0.0002,2]
[368255031,1751075444026,-1387.59,0.0002,2]
[368255033,1751075444036,-1580.91,0.0002,2]
[368255035,1751075444045,-2604.78,0.0002,2]
[368255037,1751075444054,-460.0,0.0002,2]
[368255039,1751075444063,-460.0,0.0002,2]
[368255041,1751075444073,-1742.3,0.0002,2]
[368255043,1751075444084,-462.64,0.0002,2]
[368255045,1751075444093,-460.0,0.0002,2]
[368255047,1751075444103,-699.66,0.0002,2]
[368255048,1751075444112,-4152.59,0.0002,2]
[368255049,1751075444122,-521.66,0.0002,2]
[368255050,1751075444131,-970.74,0.0002,2]
[368255051,1751075444139,-188.01781677,0.0002,2]
[368255052,1751075444148,-460.0,0.0002,2]
[368255053,1751075444157,-460.0,0.0002,2]
[368255054,1751075444166,-460.0,0.0002,2]
[368255055,1751075444176,-460.0,0.0002,2]
[368255056,1751075444186,-910.11,0.0002,2]
[368255057,1751075444195,-1509.27,0.0002,2]
[368255058,1751075444204,-460.0,0.0002,2]
[368255059,1751075444213,-621.59,0.0002,2]
[368255060,1751075444222,-460.0,0.0002,2]
[368255061,1751075444231,-1187.22,0.0002,2]
[368255062,1751075444240,-460.0,0.0002,2]
[368255063,1751075444249,-637.56,0.0002,2]
[368255064,1751075444258,-1056.6,0.0002,2]
[368255065,1751075444267,-1623.49,0.0002,2]
[368255066,1751075444276,-460.0,0.0002,2]
[368255067,1751075444285,-460.0,0.0002,2]
[368255068,1751075444295,-460.0,0.0002,2]
[368255069,1751075444304,-460.0,0.0002,2]
[368255070,1751075444313,-294.13540374,0.00020064,2]
[368255071,1751075444322,-7138.87120122,0.00020141,2]
[368255072,1751075444332,-324.287043,0.00020187,2]
[368255073,1751075444341,-460.0,0.00020273,2]
[368255074,1751075444350,-460.0,0.00020273,2]
[368255075,1751075444359,-487.1086644,0.00020273,2]
[368255076,1751075444368,-460.0,0.00020273,2]
[368255078,1751075444379,-460.0,0.00020273,2]
[368255079,1751075444387,-460.0,0.00020273,2]
[368255080,1751075444397,-460.0,0.00020273,2]
[368255082,1751075444407,-460.0,0.00020273,2]
[368255083,1751075444416,-460.0,0.00020273,2]
[368255085,1751075444425,-483.9,0.00020273,2]
[368255087,1751075444435,-460.0,0.00020273,2]
[368255089,1751075444444,-460.0,0.00020273,2]
[368255091,1751075444453,-460.0,0.00020273,2]
[368255093,1751075444463,-460.0,0.00020273,2]
[368255095,1751075444472,-460.0,0.00020273,2]
[368255097,1751075444482,-460.0,0.00020273,2]
[368255099,1751075444491,-460.0,0.00020273,2]
[368255101,1751075444500,-1165.43,0.00020273,2]
[368255103,1751075444510,-936.86,0.00020273,2]
[368255105,1751075444518,-460.0,0.00020273,2]
[368255107,1751075444528,-1749.87,0.00020273,2]
[368255109,1751075444537,-460.0,0.00020273,2]
[368255111,1751075444547,-460.0,0.00020273,2]
[368255113,1751075444557,-466.91,0.00020273,2]
[368255115,1751075444567,-460.0,0.00020273,2]
[368255117,1751075444576,-460.0,0.00020273,2]
[368255119,1751075444586,-260.51360379,0.00020273,2]
[368255121,1751075444596,-641.71,0.00020273,2]
[368255123,1751075444605,-460.0,0.00020273,2]
[368255125,1751075444614,-460.0,0.00020273,2]
[368255127,1751075444623,-1748.96,0.00020273,2]
[368255129,1751075444633,-504.27,0.00020273,2]
[368255131,1751075444643,-1630.37,0.00020273,2]
[368255133,1751075444651,-460.0,0.00020273,2]
[368255135,1751075444660,-460.0,0.00020273,2]
[368255137,1751075444669,-1387.59,0.00020273,2]
[368255138,1751075444678,-1580.91,0.00020273,2]
[368255141,1751075444687,-2604.78,0.00020273,2]
[368255142,1751075444697,-460.0,0.00020273,2]
[368255144,1751075444706,-460.0,0.00020273,2]
[368255146,1751075444716,-1742.3,0.00020273,2]
[368255148,1751075444725,-462.64,0.00020273,2]
[368255150,1751075444736,-460.0,0.00020273,2]
[368255152,1751075444745,-699.66,0.00020273,2]
[368255154,1751075444754,-4152.59,0.00020273,2]
[368255156,1751075444763,-521.66,0.00020273,2]
[368255158,1751075444773,-970.74,0.00020273,2]
[368255160,1751075444783,-460.0,0.00020273,2]
[368255162,1751075444793,-460.0,0.00020273,2]
[368255164,1751075444802,-460.0,0.00020273,2]
[368255166,1751075444812,-460.0,0.00020273,2]
[368255169,1751075444822,-910.11,0.00020273,2]
[368255170,1751075444831,-1509.27,0.00020273,2]
[368255172,1751075444840,-460.0,0.00020273,2]
[368255174,1751075444850,-621.59,0.00020273,2]
[368255176,1751075444859,-460.0,0.00020273,2]
[368255178,1751075444868,-1187.22,0.00020273,2]
[368255180,1751075444878,-460.0,0.00020273,2]
[368255182,1751075444890,-637.56,0.00020273,2]
[368255184,1751075444899,-1056.6,0.00020273,2]
[368255186,1751075444908,-1623.49,0.00020273,2]
[368255188,1751075444918,-460.0,0.00020273,2]
[368255190,1751075444927,-460.0,0.00020273,2]
[368255192,1751075444936,-460.0,0.00020273,2]
[368255194,1751075444946,-460.0,0.00020273,2]
[368255196,1751075444955,-7138.87120122,0.00020383,3]
[368255198,1751075444964,-847.04181546,0.00020402,2]
[368255200,1751075444974,-160.0,0.00020402,2]
[368255202,1751075444984,-230.26210603,0.00020402,2]
[368255204,1751075444993,-213.75309343,0.00020402,2]
[368255206,1751075445002,-836.98798914,0.00020402,2]
[368255208,1751075445011,-160.0,0.00020402,2]
[368255210,1751075445020,-160.0,0.00020402,2]
[368255212,1751075445030,-214.91804724,0.00020402,2]
[368255214,1751075445040,-12562.41216491,0.00020402,2]
[368255216,1751075445050,-160.0,0.00020402,2]
[368255218,1751075445059,-160.0,0.00020402,2]
[368255220,1751075445068,-160.0,0.00020403,2]
[368255222,1751075445079,-160.0,0.00020403,2]
[368255224,1751075445092,-2226.34336603,0.0002042,2]
[368255226,1751075445102,-207.0,0.00020432,2]
[368255228,1751075445111,-300.0,0.00020462,2]
[368255230,1751075445120,-1000.0,0.00020474,2]
[368255232,1751075445131,-1175.0,0.00020536,2]
[368255234,1751075445140,-438.34,0.00020538,3]
[368255236,1751075445149,-460.0,0.00020547,2]
[368255238,1751075445159,-500.0,0.00020547,14]
[368255240,1751075445169,-460.0,0.00020547,2]
[368255242,1751075445179,-460.0,0.00020547,2]
[368255244,1751075445189,-460.0,0.00020547,2]
[368255246,1751075445199,-475.8949823,0.00020547,2]
[368255248,1751075445209,-460.0,0.00020547,2]
[368255250,1751075445218,-460.0,0.00020547,2]
[368255252,1751075445227,-269.45039927,0.00020547,2]
[368255254,1751075445236,-483.9,0.00020547,2]
[368255256,1751075445246,-460.0,0.00020547,2]
[368255258,1751075445255,-460.0,0.00020547,2]